bitfinex-derivatives/quotes_ETHF0:USTF0_20250828
["timestamp","ask_amount","ask_price","bid_price","bid_amount"]
[1756395806335,0.2463,4522.6,4519.9,33.8134923]
[1756395806639,0.3625,4522.8,4520.0,0.22118]
[1756395806938,0.3625,4522.6,4520.0,0.22118]
[1756395807138,0.3625,4522.6,4520.1,0.22117]
[1756395807438,0.3625,4522.8,4520.3,0.39814]
[1756395807937,0.3625,4522.8,4520.4,0.22115999]
[1756395808133,0.3625,4522.8,4519.9,32.02154947]
[1756395808335,0.3625,4522.8,4520.1,0.39817]
[1756395808532,0.3625,4522.8,4520.0,0.22117]
[1756395808732,0.3625,4522.8,4520.1,0.22117]
[1756395808927,0.3625,4523.9,4520.6,0.39812]
[1756395809131,0.3625,4523.7,4520.4,0.39814]
[1756395809339,0.52743072,4523.6,4520.1,1.21654999]
[1756395809527,0.3625,4523.4,4520.0,0.22113999]
[1756395809730,0.3625,4523.2,4520.8,0.3981]
[1756395810042,0.3625,4524.1,4520.5,0.39813]
[1756395810340,0.3625,4524.1,4519.9,32.02154947]
[1756395810341,0.3625,4523.8,4519.9,31.841]
[1756395810639,3.671,4523.9,4520.0,0.22113999]
[1756395810640,0.3625,4523.6,4520.0,0.22113999]
[1756395810841,0.52699613,4523.5,4520.0,0.22113999]
[1756395811043,0.3625,4523.3,4519.9,31.841]
[1756395811227,0.3625,4523.1,4519.9,31.841]
[1756395811431,0.52699613,4523.0,4520.0,0.22115]
[1756395811632,0.88949613,4522.9,4520.0,0.22115]
[1756395811932,0.3625,4523.3,4519.9,31.841]
[1756395812240,3.84911258,4523.6,4520.0,0.22115]
[1756395812241,0.3625,4523.1,4520.0,0.22115]
[1756395812436,0.3625,4522.9,4520.0,0.61932]
[1756395812638,0.22115,4523.4,4520.1,0.61931]
[1756395812834,0.3625,4523.2,4520.0,0.22115]
[1756395813039,0.3625,4523.0,4520.0,0.22115]
[1756395813337,0.17811258,4523.6,4520.0,0.22115]
[1756395813338,0.3625,4522.8,4520.0,0.39817]
[1756395813538,0.3625,4522.8,4520.1,0.22115]
[1756395813749,4.0335,4524.1,4520.0,0.22117]
[1756395813937,3.671,4523.7,4519.9,31.841]
[1756395814142,0.52555436,4523.6,4520.0,0.39817]
[1756395814343,0.3625,4523.4,4520.0,0.22113999]
[1756395814541,3.671,4523.2,4519.9,31.841]
[1756395814737,0.52555436,4523.1,4519.9,31.841]
[1756395815042,0.3625,4522.9,4519.9,31.841]
[1756395815341,0.52555436,4523.0,4518.2,31.856]
[1756395815342,3.671,4522.3,4518.2,31.856]
[1756395815542,32.38155436,4522.2,4518.2,31.856]
[1756395815743,0.3625,4521.9,4518.3,0.99581]
[1756395816039,0.3934,4521.7,4518.9,0.39827]
[1756395816248,0.3934,4521.7,4518.2,31.856]
[1756395816249,0.3934,4522.1,4518.5,0.39831]
[1756395816437,0.52455945,4522.0,4518.6,0.3983]
[1756395816745,0.91795945,4521.9,4518.7,0.39829]
[1756395816943,0.3934,4521.9,4518.8,0.39828]
[1756395817142,0.3934,4521.9,4519.0,0.39826]
[1756395817346,0.3934,4521.9,4518.8,0.39828]
[1756395817839,0.3934,4521.9,4518.9,0.22122]
[1756395818144,3.671,4521.6,4518.7,0.39829]
[1756395818441,0.3934,4521.5,4518.5,0.3983]
[1756395818642,0.3934,4521.5,4518.4,0.22124]
[1756395819042,0.3934,4521.5,4518.9,0.39827]
[1756395819237,0.3934,4521.5,4519.0,0.39826]
[1756395819440,3.671,4522.1,4519.1,0.39825]
[1756395819639,3.671,4521.7,4518.9,0.39827]
[1756395819843,0.91734647,4521.6,4519.0,0.39826]
[1756395820039,3.671,4522.1,4518.7,0.99573]
[1756395820339,0.3934,4521.8,4519.0,0.99564]
[1756395820544,0.3934,4521.8,4519.9,0.39818]
[1756395820744,0.3934,4521.8,4519.7,0.3982]
[1756395820945,0.3934,4521.8,4519.4,0.39823]
[1756395821141,0.3934,4521.8,4518.9,0.22122]
[1756395821345,0.3934,4522.1,4519.6,0.39821]
[1756395821544,0.3934,4522.1,4519.1,0.39825]
[1756395821739,0.3934,4522.1,4519.1,0.22121]
[1756395822043,0.52407105,4522.0,4518.8,0.39828]
[1756395822244,0.61463,4522.0,4518.8,0.39828]
[1756395822434,3.671,4521.7,4518.4,0.39831]
[1756395822636,4.58844512,4521.6,4518.3,0.57378234]
[1756395822835,0.3934,4521.4,4518.3,0.39669233]
[1756395823044,0.3934,4521.4,4518.7,0.39828]
[1756395823438,0.3934,4521.4,4518.8,0.61952]
[1756395823645,0.3934,4521.5,4518.9,0.39827]
[1756395823849,0.3934,4521.3,4519.1,0.39825]
[1756395824040,0.3934,4521.9,4518.4,0.22122999]
[1756395824240,3.671,4521.7,4518.5,0.3983]
[1756395824541,0.91738137,4521.6,4518.7,0.39829]
[1756395824750,0.3934,4521.4,4519.0,0.39826]
[1756395824942,3.671,4521.7,4518.6,0.99574]
[1756395825143,0.3934,4521.5,4518.8,0.39828]
[1756395825451,3.671,4521.4,4518.4,0.22124]
[1756395825648,0.3934,4521.2,4518.3,0.39832]
[1756395825843,0.3934,4521.2,4518.3,0.22122999]
[1756395826141,31.856,4522.2,4519.0,0.39826]
[1756395826142,0.3934,4521.6,4519.0,0.39826]
[1756395826345,0.3934,4521.4,4518.7,0.39829]
[1756395826541,31.856,4522.2,4519.2,0.39824]
[1756395826542,0.52448664,4521.3,4519.2,0.39824]
[1756395826735,0.52448664,4521.3,4518.5,0.99576]
[1756395826736,0.91788664,4521.2,4519.1,0.39825]
[1756395826940,3.671,4522.1,4519.2,0.39824]
[1756395827138,0.91794421,4522.0,4519.3,0.39823]
[1756395827338,0.52454421,4521.9,4518.6,0.99575]
[1756395827537,0.3934,4521.7,4519.3,0.39824]
[1756395827739,0.3934,4521.5,4518.9,0.99568]
[1756395827939,0.52484189,4521.4,4518.9,0.39827]
[1756395828135,0.52484189,4521.4,4518.8,0.22122]
[1756395828136,0.52484189,4521.3,4518.4,0.99579]
[1756395828351,0.3934,4521.1,4519.0,0.39826]
[1756395828640,0.3934,4521.1,4518.5,0.22122]
[1756395828842,3.671,4522.0,4518.5,0.22122]
[1756395829050,0.3934,4521.8,4519.5,0.39822]
[1756395829250,0.3934,4521.6,4519.5,0.39822]
[1756395829450,0.3934,4521.4,4519.5,0.39822]
[1756395829649,0.3934,4521.2,4519.8,0.39819]
[1756395829846,0.3934,4521.2,4520.0,0.39817]
[1756395830051,0.3934,4521.2,4519.7,0.39819]
[1756395830255,0.3934,4521.2,4519.8,0.39819]
[1756395830552,0.3934,4521.2,4520.1,0.39817]
[1756395830850,0.3934,4522.1,4520.2,0.39816]
[1756395831050,0.3934,4521.9,4520.2,0.39816]
[1756395831249,0.3934,4521.7,4519.6,0.99552]
[1756395831444,0.52752815,4521.6,4519.9,0.39818]
[1756395831648,0.52752815,4521.6,4520.0,0.39817]
[1756395831845,0.92092815,4521.5,4520.0,0.39817]
[1756395832046,0.3934,4521.5,4520.1,0.39816]
[1756395832252,0.52522049,4521.4,4520.2,0.39815]
[1756395832455,0.3934,4521.2,4519.9,0.39818]
[1756395832653,0.3934,4521.2,4519.7,0.39819]
[1756395833257,31.856,4522.2,4518.3,0.99581]
[1756395833258,0.52440459,4521.1,4518.3,0.99581]
[1756395833549,0.52440459,4521.0,4518.0,40.8]
[1756395833851,0.3934,4520.7,4518.0,0.39835]
[1756395834053,0.3934,4520.5,4518.1,0.39834]
[1756395834249,0.52440459,4520.4,4518.2,32.64941915]
[1756395834552,0.52440459,4520.3,4518.2,32.25108915]
[1756395834753,0.91780459,4520.2,4518.4,0.39831]
[1756395834953,0.3934,4520.0,4518.4,0.39831]
[1756395835154,0.3934,4519.8,4518.4,0.39831]
[1756395835350,0.52440459,4519.7,4518.4,0.39831]
[1756395835747,0.52440459,4519.7,4518.6,0.39829]
[1756395835944,0.52440459,4519.7,4518.7,0.39828]
[1756395836143,0.52440459,4519.7,4518.3,0.22129]
[1756395836355,0.91780459,4519.6,4518.2,31.856]
[1756395836553,0.52440459,4519.5,4518.3,0.22126]
[1756395836755,0.52440459,4519.5,4518.6,0.3983]
[1756395836957,0.52440459,4519.5,4518.6,0.39829]
[1756395837455,0.52440459,4519.5,4518.2,32.03095721]
[1756395837656,0.52440459,4519.5,4518.4,0.39831]
[1756395838344,0.52440459,4519.5,4518.5,0.3983]
[1756395838549,0.52440459,4519.5,4518.3,0.39832]
[1756395838954,0.91780459,4519.4,4518.2,32.03095721]
[1756395839256,0.2436,4519.1,4519.0,0.00552006]
[1756395839456,0.637,4519.1,4519.0,0.00552006]
[1756395840152,1.16277384,4519.1,4519.0,0.00552006]
[1756395840749,0.52577384,4519.1,4519.0,0.00552006]
[1756395841056,0.637,4519.1,4519.0,0.00552006]
[1756395841652,0.3934,4519.1,4519.0,0.00552006]
[1756395841856,0.637,4519.1,4519.0,0.00552006]
[1756395842356,0.3934,4519.1,4519.0,0.00552006]
[1756395842558,0.3934,4519.8,4519.0,0.00552006]
[1756395842758,0.52591587,4519.7,4519.0,0.00552006]
[1756395842958,0.52591587,4519.6,4519.0,0.00552006]
[1756395843151,0.52591587,4519.5,4519.0,0.00552006]
[1756395843352,0.3934,4519.3,4519.0,0.00552006]
[1756395843855,0.3934,4520.6,4519.0,4.40378006]
[1756395844061,0.3934,4520.4,4519.2,0.39824]
[1756395844263,0.52613332,4520.3,4519.0,0.00552006]
[1756395844466,0.52613332,4520.3,4519.1,0.22125]
[1756395844763,0.3934,4520.1,4519.0,0.40378006]
[1756395845059,0.3934,4520.1,4519.1,0.39825]
[1756395845260,0.3934,4520.1,4519.0,0.00552006]
[1756395845462,0.3934,4520.1,4519.5,0.39822]
[1756395845655,0.3934,4521.5,4519.6,0.39821]
[1756395845855,0.3934,4521.3,4519.4,0.39822]
[1756395846056,0.3773,4521.1,4519.2,0.39824]
[1756395846260,0.3773,4520.9,4519.4,0.39822]
[1756395846455,0.52647263,4520.8,4519.1,0.22122]
[1756395846656,0.90377263,4520.7,4519.4,0.39823]
[1756395846963,0.3773,4520.5,4519.4,0.39823]
[1756395847255,0.52647263,4520.4,4519.2,0.99561]
[1756395847463,0.3773,4520.5,4519.8,0.39819]
[1756395847854,0.3773,4520.5,4519.9,0.39818]
[1756395848050,0.3773,4520.5,4519.3,0.22125]
[1756395848255,0.3773,4522.5,4520.2,0.39815]
[1756395848463,0.5247039,4522.4,4520.0,32.27217]
[1756395848760,0.3773,4522.1,4520.2,0.39816]
[1756395849062,0.5247039,4522.0,4520.0,32.27217]
[1756395849257,0.3773,4521.8,4520.0,32.27217]
[1756395849561,0.3773,4521.6,4520.0,32.09517]
[1756395849859,1.5434576,4523.4,4521.0,0.39808]
[1756395850060,0.22096211,4523.4,4520.3,0.99537]
[1756395850257,0.52468676,4523.3,4520.3,0.39815]
[1756395850457,0.90198676,4523.2,4520.3,0.39815]
[1756395850759,0.3773,4522.9,4521.4,0.39804]
[1756395851058,0.52468676,4522.8,4520.3,1.99074]
[1756395851268,0.3773,4522.7,4520.5,1.99067]
[1756395851555,0.3773,4522.7,4521.9,0.39801]
[1756395852156,0.3773,4522.7,4520.1,1.9724923]
[1756395852157,0.3773,4522.7,4522.3,0.39797]
[1756395852363,5.600322,4525.2,4521.9,0.398]
[1756395852364,1.5434576,4525.1,4521.9,0.398]
[1756395852559,2.44236564,4525.0,4522.1,0.39799]
[1756395852761,0.3773,4524.8,4522.2,0.39798]
[1756395852956,0.52160804,4524.7,4522.3,0.39797]
[1756395853262,0.3773,4524.5,4522.8,0.39793]
[1756395853458,0.3773,4524.3,4523.0,0.39791]
[1756395853858,0.3773,4524.3,4522.8,0.39792]
[1756395854062,0.3773,4524.3,4522.7,0.39793]
[1756395854263,0.3773,4525.2,4522.2,0.99496]
[1756395854463,0.52060661,4525.1,4523.0,0.3979]
[1756395854667,0.3773,4525.0,4522.7,0.39793]
[1756395854863,0.3773,4525.2,4521.9,0.398]
[1756395855159,0.51552395,4525.1,4521.8,31.871]
[1756395855365,0.51552395,4525.0,4521.8,31.871]
[1756395855559,32.0957578,4525.3,4521.8,31.871]
[1756395855560,0.3773,4524.8,4521.8,31.871]
[1756395855764,0.51552395,4524.7,4521.8,31.871]
[1756395855970,0.3773,4524.5,4521.8,31.871]
[1756395856267,0.51552395,4524.4,4521.8,31.871]
[1756395856561,0.3773,4524.2,4521.8,31.871]
[1756395856759,0.51552395,4524.1,4521.8,31.871]
[1756395856958,0.51552395,4524.0,4521.8,31.871]
[1756395857154,32.0957578,4525.3,4521.8,31.871]
[1756395857155,0.51552395,4523.9,4521.8,31.871]
[1756395857363,8.915,4525.0,4521.8,31.871]
[1756395857660,9.65053668,4524.9,4521.8,31.871]
[1756395857969,0.3773,4524.7,4521.8,31.871]
[1756395858164,0.3773,4524.5,4521.8,31.871]
[1756395858459,0.51446667,4524.4,4521.8,31.871]
[1756395858666,0.51446667,4524.3,4521.8,31.871]
[1756395858868,0.3773,4524.1,4521.8,31.871]
[1756395859165,0.3773,4523.9,4521.8,31.871]
[1756395859366,0.22108,4524.8,4521.8,31.871]
[1756395859662,0.3773,4524.6,4521.8,31.871]
[1756395859863,0.51428163,4524.5,4521.8,31.871]
[1756395860057,0.3773,4524.3,4521.8,31.871]
[1756395860256,0.51428163,4524.2,4521.8,31.871]
[1756395860464,0.3773,4524.0,4521.8,31.871]
[1756395860665,0.3773,4524.7,4521.8,31.871]
[1756395860861,0.3773,4524.5,4521.8,31.871]
[1756395861062,0.3773,4524.3,4521.8,31.871]
[1756395861260,0.3773,4524.1,4521.8,31.871]
[1756395861567,0.3773,4524.7,4521.8,31.871]
[1756395861864,0.3773,4524.2,4519.5,0.99555]
[1756395862066,0.3773,4524.0,4519.4,0.22113999]
[1756395862259,0.3773,4523.8,4519.4,0.22113999]
[1756395862465,0.3773,4523.6,4519.9,0.39818]
[1756395862667,3.671,4524.1,4519.9,0.39818]
[1756395862668,0.3773,4523.4,4520.0,0.39817]
[1756395862866,0.3773,4523.2,4519.9,0.17337213]
[1756395863172,31.86,4523.5,4519.9,0.39818]
[1756395863367,31.86,4523.5,4519.0,31.86552006]
[1756395863368,0.3773,4523.3,4519.7,0.3982]
[1756395863565,0.3773,4523.1,4519.7,0.3982]
[1756395863768,0.3773,4522.9,4519.3,0.39823]
[1756395863966,0.3773,4522.7,4519.3,0.17392206]
[1756395864174,0.3773,4522.5,4519.5,0.39822]
[1756395864468,0.3773,4522.5,4519.3,0.39823]
[1756395864857,0.22119,4522.5,4519.1,40.8]
[1756395865062,4.0483,4523.0,4519.1,40.8]
[1756395865268,0.3773,4522.8,4519.1,0.39825]
[1756395865465,0.3773,4522.6,4519.0,31.86552006]
[1756395865671,0.51065751,4522.5,4519.0,31.86552006]
[1756395865865,0.3773,4522.3,4519.0,32.44229676]
[1756395866061,0.3773,4522.3,4519.0,32.04403676]
[1756395866377,0.3773,4523.3,4519.8,0.39819]
[1756395866574,0.3773,4523.1,4520.2,0.39815]
[1756395866773,0.3773,4523.3,4520.2,0.39815]
[1756395866976,0.3773,4523.1,4520.3,0.39815]
[1756395867472,0.3773,4523.4,4520.8,0.3981]
[1756395867672,0.3773,4523.2,4520.9,0.39809]
[1756395867874,0.3773,4523.2,4520.1,0.22115]
[1756395868074,0.3773,4523.4,4520.0,3.20544]
[1756395868271,0.3773,4523.4,4520.2,0.9954]
[1756395868477,0.3773,4523.4,4520.5,0.39812]
[1756395868671,4.0483,4523.4,4519.6,40.8]
[1756395868874,0.73223777,4523.3,4519.1,0.99563]
[1756395869075,0.3773,4523.0,4518.8,0.9957]
[1756395869272,0.51106777,4522.9,4519.5,0.39822]
[1756395869574,0.3773,4522.7,4519.5,0.39822]
[1756395869876,0.3773,4522.5,4519.5,0.39822]
[1756395870077,0.51106777,4522.4,4518.8,3.2057]
[1756395870276,3.671,4523.4,4518.8,3.2057]
[1756395870277,0.3773,4522.3,4519.4,0.39823]
[1756395870476,0.3773,4522.3,4519.5,0.39822]
[1756395871675,3.671,4523.2,4519.8,0.39819]
[1756395871875,0.3773,4523.0,4519.8,0.39819]
[1756395872070,0.3773,4522.8,4519.6,0.39821]
[1756395872282,0.51162654,4522.7,4519.7,0.3982]
[1756395872579,0.88892654,4522.6,4521.2,0.12337618]
[1756395872782,0.22119,4523.1,4521.2,0.12337618]
[1756395872971,0.8891705,4523.0,4521.2,0.12337618]
[1756395873177,0.5118705,4522.9,4521.2,0.12337618]
[1756395873480,0.3773,4523.1,4521.2,0.12337618]
[1756395873673,0.6178,4522.2,4522.1,0.12337618]
[1756395874073,0.3773,4522.2,4522.1,0.12337618]
[1756395874980,0.3773,4523.4,4522.1,0.12337618]
[1756395875184,0.6178,4522.2,4522.1,0.12337618]
[1756395876881,0.3733,4523.4,4522.1,0.12337618]
[1756395877579,0.3733,4523.4,4522.7,0.12337618]
[1756395877778,0.6164,4522.8,4522.7,0.12337618]
[1756395879380,0.3733,4522.8,4522.7,0.12337618]
[1756395879982,0.6164,4522.8,4522.7,0.12337618]
[1756395882775,0.3733,4522.7,4520.7,31.864]
[1756395882980,0.6164,4520.8,4519.2,31.861]
[1756395883480,0.3733,4523.0,4519.4,0.99557]
[1756395883778,0.51271712,4522.9,4519.6,0.99553]
[1756395883985,3.671,4523.1,4519.2,31.861]
[1756395883986,0.3733,4522.6,4519.4,1.21674]
[1756395884178,0.51271712,4522.5,4520.2,0.39815]
[1756395884383,0.3733,4522.3,4519.6,0.99553]
[1756395884682,0.3733,4523.0,4520.3,0.39815]
[1756395884885,0.3733,4522.8,4520.4,0.39813]
[1756395885079,0.3733,4522.6,4520.5,0.39813]
[1756395885288,0.3733,4522.4,4520.5,0.39813]
[1756395885486,3.671,4523.2,4519.6,0.99553]
[1756395885487,0.3733,4522.2,4520.3,0.39814]
[1756395886185,0.3733,4523.2,4520.6,0.39812]
[1756395886379,0.73466093,4523.1,4520.5,0.39813]
[1756395886583,0.88678092,4523.0,4520.6,0.39812]
[1756395886782,0.3733,4522.8,4520.4,0.39813]
[1756395886985,0.3733,4522.6,4520.5,0.39813]
[1756395887184,0.3733,4522.4,4520.5,0.39813]
[1756395887381,31.861,4523.3,4521.4,0.02798087]
[1756395887587,0.6164,4521.5,4521.4,0.02798087]
[1756395887790,0.3733,4521.4,4519.5,0.0081]
[1756395889886,0.17504151,4521.8,4519.5,0.0081]
[1756395889887,0.3733,4521.2,4519.5,0.0081]
[1756395890785,0.22122001,4521.1,4519.5,0.0081]
[1756395891091,5.2144576,4522.6,4519.5,0.0081]
[1756395891092,0.3733,4521.0,4519.5,0.0081]
[1756395892787,0.3733,4521.0,4519.6,0.22122999]
[1756395892995,0.3733,4521.0,4519.7,0.0081]
[1756395894297,0.17479304,4522.0,4519.7,0.0081]
[1756395894298,0.6164,4520.4,4520.3,0.02448421]
[1756395895191,0.6164,4520.4,4520.3,0.03265269]
[1756395896297,0.6164,4520.4,4519.3,0.0081]
[1756395898401,0.6164,4520.4,4519.4,0.0408]
[1756395898698,3.671,4521.8,4520.4,0.0408]
[1756395898699,0.3733,4521.8,4520.4,0.0408]
[1756395898897,0.2431,4520.5,4520.4,0.1061]
[1756395899096,0.6164,4520.5,4520.4,0.1061]
[1756395899296,0.3733,4521.8,4520.5,0.0408]
[1756395900698,0.3733,4521.8,4520.6,0.22118]
[1756395901000,0.3733,4521.8,4521.2,0.05583515]
[1756395901198,0.2431,4521.3,4521.2,0.01503515]
[1756395901401,0.6164,4521.3,4521.2,0.01503515]
[1756395901593,4.2431,4521.3,4519.3,0.0558]
[1756395901899,3.671,4522.2,4519.4,0.0558]
[1756395902093,0.6164,4520.4,4520.3,0.01503515]
[1756395903601,0.3733,4520.3,4519.2,31.861]
[1756395903806,0.6164,4519.3,4519.2,31.861]
[1756395904300,0.6164,4519.3,4519.2,31.9319]
[1756395904499,0.6164,4519.3,4519.2,31.861]
[1756395904697,0.3733,4519.2,4519.0,0.00552006]
[1756395904898,0.2431,4519.1,4519.0,0.00552006]
[1756395905100,0.6164,4519.1,4519.0,0.00552006]
[1756395905999,0.3477,4521.2,4519.1,0.0596]
[1756395906201,0.51362044,4521.1,4519.1,0.0596]
[1756395906404,0.86132044,4521.0,4519.1,0.0596]
[1756395906608,0.2404,4519.2,4519.1,0.0596]
[1756395906799,0.2404,4519.2,4519.0,0.00552006]
[1756395906800,0.5881,4519.2,4519.0,0.00552006]
[1756395908102,0.5881,4519.2,4519.1,0.02223738]
[1756395909204,0.5881,4519.2,4519.1,0.03031678]
[1756395910202,8.915,4521.2,4519.1,0.18521678]
[1756395910203,0.3477,4520.3,4519.1,0.18521678]
[1756395910700,0.2404,4519.2,4519.1,0.12561678]
[1756395910906,0.5881,4519.2,4519.1,0.03031678]
[1756395912505,0.5881,4519.2,4519.0,0.00552006]
[1756395913096,0.2404,4519.2,4519.0,0.00552006]
[1756395913297,0.3477,4519.1,4519.0,0.00552006]
[1756395913499,0.5881,4519.1,4518.3,0.0877]
[1756395914098,0.5881,4519.1,4518.5,0.0877]
[1756395915307,0.5881,4519.1,4518.0,0.17759248]
[1756395915508,0.5881,4519.1,4518.5,0.01511132]
[1756395916108,0.3477,4519.0,4517.7,31.869]
[1756395916304,0.3477,4520.3,4517.7,32.26737]
[1756395916505,0.2404,4519.1,4519.0,0.01511132]
[1756395916712,0.5881,4519.1,4519.0,0.01511132]
[1756395918908,0.5881,4519.1,4517.7,32.26737]
[1756395918909,4.0,4519.1,4517.7,31.869]
[1756395919115,0.5881,4517.8,4517.7,31.869]
[1756395920212,0.5881,4517.8,4516.6,0.18056984]
[1756395920417,0.5881,4517.8,4516.5,0.1235]
[1756395922507,0.3477,4517.7,4516.2,31.879]
[1756395922711,0.3477,4519.3,4516.2,31.879]
[1756395922913,0.2404,4517.8,4516.2,31.879]
[1756395923107,0.3477,4519.4,4516.2,31.879]
[1756395923417,0.3477,4519.1,4516.3,0.1458]
[1756395923607,0.3477,4518.9,4516.3,0.1458]
[1756395923808,0.3477,4518.7,4516.3,0.1458]
[1756395924116,0.22135,4519.1,4516.4,0.39849]
[1756395924117,0.3477,4518.5,4516.4,0.39849]
[1756395924305,0.3477,4517.3,4516.6,0.77757]
[1756395924505,0.39846,4516.8,4516.7,0.3791]
[1756395925817,0.39844,4517.0,4516.9,0.2333]
[1756395926013,0.39844,4517.0,4516.9,0.3791]
[1756395927004,0.3477,4516.9,4516.8,0.2333]
[1756395927203,0.39848,4516.5,4516.4,0.3791]
[1756395927903,0.39847,4516.7,4516.6,0.39847]
[1756395928109,0.39847,4516.7,4516.6,0.2333]
[1756395928318,0.39847,4516.7,4516.6,0.3791]
[1756395929413,0.39847,4516.7,4516.6,0.40936116]
[1756395929814,0.39846,4516.8,4516.7,0.3791]
[1756395930217,0.3477,4516.7,4516.6,0.03026116]
[1756395930511,0.9866,4516.3,4516.2,31.879]
[1756395930918,0.9866,4516.3,4516.2,32.0248]
[1756395931114,0.9866,4516.3,4516.2,31.879]
[1756395931812,0.9866,4516.3,4516.2,32.0248]
[1756395932016,0.3985,4516.3,4516.2,32.0248]
[1756395932509,0.7462,4516.3,4516.2,32.0248]
[1756395932710,0.3477,4516.7,4516.2,32.0248]
[1756395932916,0.3477,4516.6,4516.2,32.0248]
[1756395933212,0.5881,4516.3,4516.2,31.879]
[1756395933421,3.858644,4521.2,4515.8,3.2078]
[1756395933422,0.2404,4515.9,4515.8,3.2078]
[1756395933619,0.5881,4515.9,4515.8,3.2078]
[1756395935313,0.5881,4515.9,4514.7,31.889]
[1756395935314,5.10938728,4515.9,4514.2,0.3701]
[1756395935515,0.3477,4515.7,4514.2,0.3701]
[1756395935814,0.5881,4515.7,4515.6,0.2483]
[1756395936014,0.5881,4515.7,4515.6,0.6184]
[1756395936221,0.5881,4515.7,4514.4,0.3664]
[1756395936412,0.5881,4515.7,4514.5,0.39866]
[1756395936613,0.5881,4515.7,4514.6,0.3664]
[1756395937111,0.5881,4515.7,4515.6,0.5994]
[1756395937310,0.6186,4515.7,4515.6,0.5994]
[1756395937516,4.6186,4515.7,4514.2,0.3664]
[1756395937711,0.3782,4515.6,4515.5,0.5994]
[1756395937910,0.3782,4517.7,4515.6,0.3664]
[1756395938215,0.6154,4517.0,4516.9,0.233]
[1756395938420,0.3782,4516.9,4515.3,0.3664]
[1756395938715,0.6154,4516.2,4516.1,0.02532708]
[1756395939115,4.6154,4516.2,4516.1,0.03569976]
[1756395939320,0.3782,4517.6,4516.2,0.3664]
[1756395939621,0.3782,4517.4,4516.2,0.3664]
[1756395939823,0.6154,4516.2,4516.1,0.03569976]
[1756395941725,0.3782,4516.7,4516.1,0.63509976]
[1756395942123,3.671,4518.1,4516.4,0.03569976]
[1756395942321,0.6154,4516.5,4516.4,0.03569976]
[1756395943529,0.3782,4517.1,4516.4,0.63509976]
[1756395943722,0.2372,4516.5,4516.4,0.63509976]
[1756395944026,0.2372,4516.5,4516.4,0.03569976]
[1756395944027,0.6154,4516.5,4516.4,0.03569976]
[1756395945331,0.6154,4516.5,4516.4,0.05796617]
[1756395945524,0.6154,4516.5,4515.3,0.3664]
[1756395945833,0.6154,4516.5,4514.5,0.3664]
[1756395946125,0.6154,4514.6,4514.3,32.2604]
[1756395946428,0.2372,4514.2,4514.1,0.7013018]
[1756395946627,0.3782,4516.1,4514.2,0.3664]
[1756395946929,0.2372,4514.3,4514.2,0.3664]
[1756395947126,0.6154,4514.3,4514.2,0.3664]
[1756395947437,0.6154,4514.3,4514.2,0.5994]
[1756395947724,0.3782,4514.2,4514.1,0.1019018]
[1756395947928,0.6154,4514.2,4514.1,0.1019018]
[1756395949029,4.6154,4514.2,4512.9,0.3664]
[1756395949332,0.18186693,4515.4,4512.1,0.3664]
[1756395949333,0.51856127,4514.1,4512.1,0.3664]
[1756395949532,0.89676127,4514.0,4512.1,0.3664]
[1756395949732,0.3782,4513.8,4512.1,0.3664]
[1756395949927,0.3782,4513.6,4512.1,0.3664]
[1756395950126,0.3782,4513.6,4511.5,0.17698138]
[1756395950325,0.17389016,4515.4,4511.6,0.3664]
[1756395950326,0.51800476,4513.5,4511.6,0.3664]
[1756395950525,0.3782,4513.4,4511.6,0.3664]
[1756395951147,0.3782,4513.2,4511.6,0.3664]
[1756395951443,0.3782,4513.2,4512.4,0.03843759]
[1756395952742,0.3782,4513.0,4511.2,0.3664]
[1756395953034,3.671,4514.2,4511.2,0.3664]
[1756395953035,0.3782,4512.8,4511.2,0.3664]
[1756395954343,0.59527232,4512.8,4511.2,0.3664]
[1756395955640,0.3782,4512.8,4511.4,0.3664]
[1756395956533,31.903,4514.6,4512.7,0.233]
[1756395956737,0.89270435,4514.5,4512.8,0.3664]
[1756395956937,0.3782,4514.3,4513.6,0.03036328]
[1756395957139,0.6154,4513.7,4513.6,0.03036328]
[1756395957329,0.3782,4515.3,4513.6,0.39676328]
[1756395957531,0.3782,4515.1,4513.6,0.39676328]
[1756395957738,0.3782,4514.9,4513.6,0.39676328]
[1756395958045,0.3782,4514.7,4514.2,0.03036328]
[1756395958241,0.3782,4515.1,4514.3,0.3664]
[1756395958444,0.51481787,4515.0,4514.3,0.3664]
[1756395958742,0.3782,4515.1,4514.3,0.3664]
[1756395959038,31.918,4516.7,4514.7,0.39676328]
[1756395959039,0.3782,4516.6,4514.7,0.39676328]
[1756395959239,0.60008749,4515.8,4514.7,0.39676328]
[1756395959742,0.22188749,4515.8,4514.7,0.39676328]
[1756395960039,0.3782,4516.2,4515.2,0.03036328]
[1756395960243,0.3782,4516.2,4515.3,0.3664]
[1756395960436,0.3782,4516.8,4514.2,31.918]
[1756395960635,0.3782,4516.8,4515.3,0.39859]
[1756395960838,0.038548,4518.0,4515.5,0.39857]
[1756395961035,0.51344241,4517.9,4515.6,0.39856]
[1756395961238,0.3782,4517.6,4515.0,0.99655]
[1756395961432,0.51344241,4517.5,4515.8,0.39854]
[1756395961633,0.51344241,4517.5,4516.0,0.39852]
[1756395961837,31.916,4519.7,4515.9,32.91234]
[1756395962041,31.916,4519.7,4515.4,0.99645]
[1756395962042,0.3782,4519.5,4517.2,0.39842]
[1756395962238,0.3782,4519.5,4516.0,31.916]
[1756395962239,0.39843,4517.1,4516.0,31.916]